bitfinex/quotes_ETHUSD_20251120
["timestamp","ask_amount","ask_price","bid_price","bid_amount"]
[1763599304934,0.002,3041.4,3041.3,0.0195]
[1763599305112,0.002,3041.4,3041.3,3.7130716]
[1763599305547,0.002,3041.4,3041.3,3.6935716]
[1763599307848,0.002,3041.4,3041.3,4.62006424]
[1763599308959,0.002,3041.4,3041.3,4.60056424]
[1763599309143,0.002,3041.4,3041.3,5.03350445]
[1763599309343,0.002,3041.4,3041.3,5.16500445]
[1763599310940,0.002,3041.4,3041.3,5.21738512]
[1763599312979,0.002,3041.4,3041.3,5.31738512]
[1763599316478,0.002,3041.4,3041.3,5.08588512]
[1763599316647,0.002,3041.4,3041.3,5.19788512]
[1763599317604,0.002,3041.4,3041.3,5.08588512]
[1763599317790,0.002,3041.4,3041.3,5.19788512]
[1763599320696,0.002,3041.4,3041.3,5.16500445]
[1763599321695,0.002,3041.4,3041.3,5.31738512]
[1763599322769,0.002,3042.0,3041.3,5.31738512]
[1763599322770,0.002,3042.0,3041.7,0.0195]
[1763599323077,0.002,3042.0,3041.4,1.33199664]
[1763599323078,0.002,3042.2,3042.0,1.31249664]
[1763599323300,0.002,3042.2,3041.9,0.405504]
[1763599323666,0.002,3042.2,3042.0,4.30630361]
[1763599323917,0.4962,3042.1,3042.0,4.62724382]
[1763599324097,0.9589,3042.1,3042.0,4.71180761]
[1763599324908,0.9589,3042.1,3042.0,4.30630361]
[1763599325884,0.9589,3042.1,3042.0,3.39931097]
[1763599326316,0.9589,3042.1,3042.0,3.28731097]
[1763599326604,0.9589,3042.1,3042.0,3.39931097]
[1763599327769,0.9589,3042.1,3041.0,0.90699264]
[1763599328013,0.1802,3041.6,3041.3,0.405504]
[1763599328168,0.1802,3041.6,3041.2,0.405504]
[1763599328371,0.6332,3042.0,3041.2,1.34537839]
[1763599328577,0.6332,3042.0,3041.4,0.405504]
[1763599328814,0.6332,3042.0,3041.6,0.405504]
[1763599329465,0.453,3041.9,3041.6,0.405504]
[1763599330235,0.1802,3042.0,3041.8,0.405504]
[1763599330436,0.1802,3042.0,3041.9,0.517504]
[1763599330937,1.0987,3042.0,3041.9,0.517504]
[1763599331326,0.002,3042.1,3042.0,0.405504]
[1763599331633,0.002,3042.1,3042.0,0.425004]
[1763599331835,0.002,3042.1,3042.0,1.33199664]
[1763599332135,0.002,3042.1,3042.0,1.45149664]
[1763599332811,0.002,3042.1,3042.0,1.56349664]
[1763599333206,0.002,3042.1,3042.0,1.54399664]
[1763599333403,0.002,3042.1,3042.0,4.71930761]
[1763599333603,0.9205,3042.1,3042.0,4.59980761]
[1763599333803,0.9205,3042.1,3042.0,4.71180761]
[1763599334939,0.9205,3042.1,3042.0,4.59980761]
[1763599335125,0.9205,3042.1,3042.0,4.71180761]
[1763599336931,0.9205,3042.1,3042.0,3.80481497]
[1763599338429,0.9205,3042.1,3042.0,3.39931097]
[1763599340561,0.9205,3042.1,3041.5,0.405504]
[1763599340758,0.9205,3042.1,3041.4,1.31249664]
[1763599340759,0.6548,3041.6,3041.4,4.19495213]
[1763599340925,0.4655,3041.5,3041.4,4.19495213]
[1763599341126,0.9185,3041.5,3041.4,5.05525368]
[1763599341478,0.002,3042.1,3041.4,11.65067266]
[1763599341673,0.002,3042.1,3041.5,0.405504]
[1763599341973,0.455,3042.1,3041.5,0.405504]
[1763599342628,0.002,3042.1,3042.0,0.0195]
[1763599342836,0.002,3042.1,3042.0,0.537004]
[1763599343035,0.002,3042.1,3042.0,1.25217476]
[1763599343335,0.002,3042.1,3042.0,1.21930166]
[1763599344331,0.002,3042.1,3042.0,1.19980166]
[1763599344727,0.4675,3042.1,3042.0,3.69281497]
[1763599344932,0.4675,3042.1,3042.0,3.80481497]
[1763599345163,0.9205,3042.1,3042.0,3.69281497]
[1763599345375,0.9205,3042.1,3042.0,3.80481497]
[1763599345672,0.9205,3042.1,3042.0,3.39931097]
[1763599346371,0.9205,3042.1,3042.0,4.06798359]
[1763599347445,0.9205,3042.1,3042.0,3.39931097]
[1763599347762,0.9205,3042.1,3041.8,3.28751254]
[1763599347956,0.4822,3042.0,3041.8,3.39951254]
[1763599348154,0.6526,3041.9,3041.8,3.39951254]
[1763599348550,1.1348,3041.9,3041.8,3.39951254]
[1763599348953,1.1348,3041.9,3041.8,3.28751254]
[1763599349164,1.1348,3041.9,3041.8,3.39951254]
[1763599349365,0.6526,3041.9,3041.8,4.097575]
[1763599349746,0.002,3042.1,3041.8,7.38510212]
[1763599350142,0.4842,3042.1,3041.8,7.38510212]
[1763599350377,0.4651,3041.9,3041.8,3.985575]
[1763599350578,0.6526,3041.9,3041.8,3.39951254]
[1763599350782,1.1348,3041.9,3041.7,3.28758654]
[1763599350983,0.9473,3041.8,3041.7,3.28758654]
[1763599351291,0.9473,3041.8,3041.7,3.39958654]
[1763599351651,0.9473,3041.8,3041.7,3.36860654]
[1763599352389,0.9473,3041.8,3041.7,0.112]
[1763599352966,0.9473,3041.8,3041.7,3.3996352]
[1763599355172,0.1875,3041.9,3041.7,3.3996352]
[1763599355372,0.1875,3041.9,3041.7,6.6872704]
[1763599355577,0.4651,3041.8,3041.7,3.3996352]
[1763599355898,0.4651,3041.8,3041.4,3.28889853]
[1763599356056,0.4651,3041.5,3041.4,0.001]
[1763599357756,0.4822,3041.7,3041.4,0.001]
[1763599357989,0.4822,3041.7,3041.5,0.112]
[1763599358186,0.002,3042.1,3041.6,0.0195]
[1763599358354,0.002,3042.1,3041.7,6.60814675]
[1763599358355,0.4631,3042.0,3041.7,6.60814675]
[1763599358557,0.4651,3042.1,3041.7,6.60814675]
[1763599359572,0.002,3042.1,3041.7,9.89578195]
[1763599359768,0.002,3042.1,3041.7,7.5760486]
[1763599360311,0.6567,3041.8,3041.6,3.28771687]
[1763599360481,0.474,3041.5,3041.4,4.60144946]
[1763599360790,0.4631,3041.7,3041.4,8.00140895]
[1763599361235,0.6458,3041.8,3041.4,8.00140895]
[1763599361881,0.1827,3041.8,3041.5,0.112]
[1763599362082,0.4631,3041.7,3041.5,0.112]
[1763599362431,0.474,3041.6,3041.5,0.517504]
[1763599362993,0.474,3041.6,3041.5,3.80535538]
[1763599364023,0.1847,3041.8,3041.5,7.09320676]
[1763599364518,0.6478,3041.8,3041.5,7.09320676]
[1763599365025,0.474,3041.6,3041.5,3.80535538]
[1763599366114,0.4631,3041.7,3041.5,7.09320676]
[1763599367014,0.1847,3041.8,3041.5,7.09320676]
[1763599367402,0.002,3041.8,3041.6,0.90699264]
[1763599368032,0.002,3041.8,3041.7,0.425004]
[1763599368843,0.9391,3041.8,3041.7,0.405504]
[1763599369028,0.9391,3041.8,3041.7,3.8051392]
[1763599369366,0.9391,3041.8,3041.7,4.71213184]
[1763599369509,0.9391,3041.8,3041.7,4.30662784]
[1763599370728,0.9391,3041.8,3041.4,0.001]
[1763599371048,0.474,3041.5,3041.4,0.001]
[1763599371412,0.9371,3041.5,3041.4,0.001]
[1763599374348,0.474,3041.5,3041.4,0.001]
[1763599374645,0.9371,3041.5,3041.4,0.001]
[1763599375013,0.002,3041.8,3041.4,7.61898585]
[1763599375209,0.002,3041.8,3041.7,0.525004]
[1763599375434,0.002,3041.8,3041.7,3.41306954]
[1763599375633,0.002,3041.8,3041.7,1.33199664]
[1763599375838,0.002,3041.8,3041.7,1.44399664]
[1763599376146,0.002,3041.8,3041.7,4.73163184]
[1763599379312,0.9391,3041.8,3041.7,4.19462784]
[1763599379552,0.9391,3041.8,3041.7,4.30662784]
[1763599381251,0.476,3041.8,3041.7,4.30662784]
[1763599381620,0.002,3041.8,3041.7,4.30662784]
[1763599381820,0.002,3041.8,3041.7,5.81984332]
[1763599382015,0.002,3041.8,3041.7,5.87221967]
[1763599382252,0.002,3041.8,3041.7,5.97221967]
[1763599382764,0.002,3041.8,3041.7,5.85271967]
[1763599382969,0.002,3041.8,3041.7,5.83934332]
[1763599383174,0.002,3041.8,3041.7,5.80034332]
[1763599383473,0.002,3041.8,3041.7,5.85271967]
[1763599383671,0.002,3041.8,3041.7,5.80034332]
[1763599383838,0.002,3041.8,3041.7,5.81984332]
[1763599384847,0.002,3041.8,3041.7,5.68834332]
[1763599385051,0.002,3041.8,3041.7,5.80034332]
[1763599385250,0.9391,3041.8,3041.5,3.2877914]
[1763599385449,0.474,3041.6,3041.5,3.3997914]
[1763599385661,0.9371,3041.6,3041.5,3.3997914]
[1763599385988,0.9371,3041.6,3041.4,0.001]
[1763599386284,0.9371,3041.5,3041.1,0.112]
[1763599386454,0.474,3041.2,3041.1,0.112]
[1763599386635,0.474,3041.2,3041.1,3.40026651]
[1763599387975,0.9401,3041.2,3041.1,0.112]
[1763599388381,0.474,3041.2,3041.1,3.40028384]
[1763599388554,0.9401,3041.2,3041.1,3.40028384]
[1763599394107,0.474,3041.2,3041.1,3.40028384]
[1763599394600,0.9401,3041.2,3041.1,3.40028384]
[1763599396098,0.474,3041.2,3041.1,3.40028384]
[1763599399478,0.002,3041.4,3041.2,0.405504]
[1763599399718,0.002,3041.4,3041.3,0.0205]
[1763599400009,0.002,3041.4,3041.3,3.3085676]
[1763599400628,0.002,3041.4,3041.3,3.2880676]
[1763599400797,0.9492,3041.4,3041.3,3.4000676]
[1763599401112,0.002,3041.4,3041.3,3.4205676]
[1763599401318,0.002,3041.4,3041.3,5.44448841]
[1763599403083,0.002,3041.4,3041.3,5.33248841]
[1763599403312,0.002,3041.4,3041.3,5.44448841]
[1763599404621,0.002,3041.4,3041.3,5.33248841]
[1763599404786,0.002,3041.4,3041.3,5.44448841]
[1763599405721,0.002,3041.4,3041.3,5.59786908]
[1763599405916,0.002,3041.4,3041.3,14.16807721]
[1763599406116,0.002,3041.4,3041.3,17.63807721]
[1763599406346,0.002,3041.8,3041.7,3.975504]
[1763599406516,0.002,3041.8,3041.7,5.43304704]
[1763599407459,0.002,3041.8,3041.7,5.46592339]
[1763599407615,0.002,3041.8,3041.7,1.99592339]
[1763599407813,0.002,3041.8,3041.7,1.59837299]
[1763599408717,0.002,3041.8,3041.7,4.88600819]
[1763599410048,0.002,3041.8,3041.7,4.85313184]
[1763599410948,0.002,3041.8,3041.7,4.98477076]
[1763599411356,0.002,3041.8,3041.7,4.85313184]
[1763599412550,0.002,3041.8,3041.7,5.68038323]
[1763599412968,0.002,3041.8,3041.7,5.71325958]
[1763599413171,0.002,3042.1,3042.0,0.505504]
[1763599413479,0.002,3042.1,3042.0,9.41665854]
[1763599413634,1e-08,3042.2,3042.1,1.45349664]
[1763599413840,1e-08,3042.2,3042.1,1.56549664]
[1763599414974,1e-08,3042.2,3042.1,4.88557157]
[1763599416479,0.002,3042.4,3042.3,0.505504]
[1763599416685,0.002,3042.4,3042.3,1.09798142]
[1763599416865,0.002,3042.4,3042.3,5.31246087]
[1763599417172,0.002,3042.9,3042.3,5.31246087]
[1763599417173,0.002,3042.9,3042.4,1.31249664]
[1763599417371,0.002,3042.9,3042.8,0.526004]
[1763599417736,0.002,3042.9,3042.8,3.896004]
[1763599418067,0.002,3042.9,3042.8,1.41749565]
[1763599418440,0.002,3042.9,3042.8,1.47086011]
[1763599418869,0.002,3042.9,3042.8,5.66429944]
[1763599419250,0.002,3042.9,3042.8,5.63143498]
[1763599420179,0.002,3042.9,3042.8,5.66429944]
[1763599420379,0.6724,3044.2,3043.7,0.405504]
[1763599420586,0.1936,3043.9,3042.9,0.63910756]
[1763599420794,0.1936,3043.9,3042.9,0.90699264]
[1763599420795,0.4932,3043.0,3042.9,0.90699264]
[1763599421080,0.4932,3043.0,3042.9,4.30533133]
[1763599421247,0.4932,3043.0,3042.9,3.39833869]
[1763599421648,0.4932,3043.0,3042.9,4.30533133]
[1763599421850,0.4909,3043.5,3043.0,0.405504]
[1763599422073,0.4909,3043.5,3043.2,0.405504]
[1763599422396,0.1936,3043.9,3043.4,0.426004]
[1763599422555,0.1936,3043.9,3043.4,0.405504]
[1763599422556,0.4909,3043.8,3043.4,0.405504]
[1763599422751,0.4909,3043.8,3042.9,7.33185518]
[1763599422752,0.4932,3043.5,3042.9,7.33185518]
[1763599422994,0.4932,3043.0,3042.9,3.69184269]
[1763599423160,0.9841,3043.0,3042.9,4.71083533]
[1763599423358,0.4909,3043.3,3042.9,11.28351271]
[1763599423887,0.4932,3043.0,3042.9,4.59883533]
[1763599424087,0.4932,3043.0,3042.9,4.71083533]
[1763599424248,0.9841,3043.0,3042.9,4.71083533]
[1763599424453,0.4932,3043.0,3042.9,4.71083533]
[1763599424655,0.4909,3043.4,3043.0,0.405504]
[1763599424867,0.4909,3043.4,3043.0,0.4383663]
[1763599425068,0.4909,3043.4,3043.2,1.31249664]
[1763599425271,0.4909,3043.4,3043.3,0.112]
[1763599425668,0.9841,3043.4,3042.3,6.57387656]
[1763599425856,0.4932,3043.3,3042.4,0.14486878]
[1763599426075,0.4932,3043.3,3042.5,0.1]
[1763599426076,0.9841,3043.3,3042.5,0.1]
[1763599426276,0.9841,3043.3,3042.6,0.03286662]
[1763599426464,0.4909,3043.2,3042.7,0.405504]
[1763599426787,0.4909,3043.2,3042.9,0.405504]
[1763599427290,0.4909,3043.2,3043.0,6.57246138]
[1763599427488,0.4909,3043.2,3043.1,0.405504]
[1763599427859,0.9841,3043.2,3043.1,0.405504]
[1763599428705,0.9841,3043.2,3043.1,1.31249664]
[1763599429491,0.9841,3043.2,3043.1,4.59861934]
[1763599430155,0.9841,3043.2,3043.1,4.71061934]
[1763599430356,0.9841,3043.2,3042.8,3.28639331]
[1763599430554,0.4909,3043.1,3042.8,3.39839331]
[1763599430782,0.4909,3043.1,3042.8,4.30538595]
[1763599430783,0.6868,3042.9,3042.8,4.30538595]
[1763599430968,0.6868,3042.9,3042.8,4.71088995]
[1763599431179,1.1777,3042.9,3042.8,4.71088995]
[1763599433392,1.1777,3042.9,3042.8,4.30538595]
[1763599435485,1.1777,3042.9,3042.8,4.71088995]
[1763599436214,0.4932,3042.9,3042.8,4.71088995]
[1763599436415,0.4932,3042.9,3042.8,5.51063409]
[1763599436877,0.002,3043.2,3042.9,0.405504]
[1763599437303,0.4932,3043.0,3042.9,0.405504]
[1763599437499,0.4932,3043.0,3042.9,0.517504]
[1763599437678,0.9841,3043.0,3042.9,0.517504]
[1763599437885,0.4932,3043.0,3042.9,1.31723766]
[1763599438085,0.9841,3043.0,3042.9,3.80384269]
[1763599438598,0.9841,3043.0,3042.9,3.28633869]
[1763599438914,0.9841,3043.0,3042.9,3.39833869]
[1763599440633,0.9841,3043.0,3042.8,4.19338595]
[1763599440634,0.9841,3043.0,3042.8,0.112]
[1763599440930,1.1777,3042.9,3042.8,0.112]
[1763599442609,1.1777,3042.9,3042.6,6.68532544]
[1763599442789,0.4932,3042.7,3042.6,3.80416672]
[1763599443002,0.9841,3042.7,3042.6,3.80416672]
[1763599444001,0.1936,3042.9,3042.7,0.405504]
[1763599444312,0.4932,3042.8,3042.7,0.405504]
[1763599444510,0.4932,3042.8,3042.7,3.6920587]
[1763599444722,0.9841,3042.8,3042.7,3.6920587]
[1763599445057,3.28553768,3043.7,3042.7,3.6920587]
[1763599445058,1.37329675,3045.4,3043.8,0.0205]
[1763599445340,1.37329675,3045.4,3044.9,0.405504]
[1763599445341,0.4909,3045.4,3044.9,0.405504]
[1763599445633,0.1936,3045.9,3044.5,0.90699264]
[1763599445634,0.4909,3045.3,3045.0,0.112]
[1763599446002,0.4932,3045.1,3045.0,0.112]
[1763599446613,0.4932,3045.1,3045.0,3.80157624]
[1763599448034,0.9527,3045.1,3045.0,0.112]
[1763599448402,0.9527,3045.1,3045.0,3.39607224]
[1763599449342,0.9547,3045.1,3045.0,3.39607224]
[1763599451933,0.9547,3045.1,3044.9,3.28415002]
[1763599452141,0.002,3045.1,3045.0,0.112]
[1763599452461,0.002,3045.1,3044.4,0.405504]
[1763599452462,0.4656,3045.1,3044.4,0.405504]
[1763599452760,0.4595,3045.0,3044.5,3.28461038]
[1763599453115,0.651,3044.6,3044.5,3.28461038]
[1763599453556,1.1105,3044.6,3044.5,3.28461038]
[1763599455416,1.1105,3044.6,3044.4,3.39669134]
[1763599455619,1.1105,3044.6,3044.0,0.405504]
[1763599455620,0.9231,3044.5,3044.1,3.28504319]
[1763599455944,0.4595,3044.5,3044.2,0.112]
[1763599456114,0.4595,3044.4,3044.2,0.112]
[1763599456315,0.4636,3044.3,3044.2,0.112]
[1763599456758,0.9231,3044.3,3044.2,0.112]
[1763599457953,0.9231,3044.3,3044.1,3.28504319]
[1763599458161,0.9231,3044.2,3044.1,3.28504319]
[1763599458567,0.9231,3044.2,3042.9,0.0205]
[1763599458767,0.1874,3043.7,3043.3,0.517504]
[1763599459758,0.1874,3043.7,3043.5,0.405504]
[1763599460039,0.4595,3043.6,3043.4,0.90699264]
[1763599460436,0.1874,3044.0,3043.5,0.0205]
[1763599460640,0.1874,3044.6,3043.5,0.0205]
[1763599460641,0.4595,3044.5,3043.7,0.405504]
[1763599460951,0.4595,3044.5,3043.9,0.405504]
[1763599461152,0.4595,3044.5,3044.1,3.28504319]
[1763599461674,0.4636,3044.2,3044.1,3.28504319]
[1763599462052,0.1874,3044.6,3044.1,6.59058638]
[1763599462255,0.6469,3044.6,3044.2,0.14484935]
[1763599462571,0.6469,3044.6,3044.2,0.112]
[1763599462776,0.6469,3044.6,3044.3,0.03284827]
[1763599463176,0.6469,3044.6,3044.4,3.28471948]
[1763599463376,0.6469,3044.6,3044.4,6.56943896]
[1763599463563,0.1874,3044.6,3044.4,6.56943896]
[1763599465279,0.1874,3044.6,3044.3,6.97515876]
[1763599466274,0.002,3045.1,3044.3,6.97515876]
[1763599466275,0.002,3045.1,3044.5,0.426004]
[1763599466458,0.4723,3045.1,3044.7,0.405504]
[1763599466853,0.6551,3044.8,3044.5,0.405504]
[1763599467101,0.6551,3044.8,3044.7,0.405504]
[1763599467452,0.6551,3044.8,3044.7,3.80189983]
[1763599468389,0.4723,3045.1,3044.7,7.08629566]
[1763599468601,0.002,3045.1,3044.7,10.37069149]
[1763599468801,0.002,3045.1,3044.8,0.405504]
[1763599469175,0.4636,3044.9,3044.8,0.405504]
[1763599469701,0.4636,3044.9,3044.8,3.68979196]
[1763599470512,0.002,3045.1,3044.8,7.37053214]
[1763599470861,0.6551,3044.9,3044.8,3.68979196]
[1763599471308,1.1254,3044.9,3044.8,3.39628796]
[1763599474366,1.1254,3044.9,3044.5,3.28455208]
[1763599474493,1.1254,3044.9,3044.5,0.112]
[1763599474494,0.9339,3044.8,3044.5,0.112]
[1763599474696,0.4636,3044.6,3044.5,0.112]
[1763599475595,0.4636,3044.6,3044.5,3.39661159]
[1763599475927,0.9339,3044.6,3044.5,3.39661159]
[1763599477421,0.4636,3044.6,3044.5,3.39661159]
[1763599479731,0.1915,3044.9,3044.5,6.70172318]
[1763599480101,0.6853,3044.9,3044.5,6.70172318]
[1763599481131,0.1915,3044.9,3044.5,6.70172318]
[1763599481332,0.6853,3044.9,3044.5,7.700367]
[1763599481738,0.1915,3044.9,3044.6,0.405504]
[1763599482948,0.4958,3045.1,3044.7,6.56879166]
[1763599485141,0.4958,3045.1,3044.7,9.85318749]
[1763599485434,0.002,3045.1,3044.8,0.405504]
[1763599485600,0.002,3045.1,3045.0,0.405504]
[1763599486005,0.9642,3045.1,3045.0,0.405504]
[1763599486614,0.9642,3045.1,3045.0,0.517504]
[1763599487221,0.4704,3045.1,3045.0,3.80157624]
[1763599487535,0.4704,3045.1,3045.0,4.51015142]
[1763599487742,0.002,3045.1,3045.0,4.51015142]
[1763599488642,0.4704,3045.1,3045.0,4.51015142]
[1763599491407,0.4704,3045.1,3044.5,0.90699264]
[1763599491408,0.9642,3045.1,3044.5,0.90699264]
[1763599491710,0.4684,3045.0,3044.6,0.517504]
[1763599491943,0.4684,3044.7,3044.6,4.70900035]
[1763599492654,0.4684,3044.7,3044.6,4.59700035]
[1763599492860,0.1897,3044.9,3044.7,0.90699264]
[1763599493058,0.6835,3044.9,3044.7,0.90699264]
[1763599493256,0.002,3045.1,3044.7,0.90699264]
[1763599493463,0.4958,3045.1,3044.7,0.90699264]
[1763599493644,0.4958,3045.1,3044.8,0.405504]
[1763599494048,0.4958,3045.1,3045.0,0.405504]
[1763599494252,0.4958,3045.1,3045.0,0.517504]
[1763599494450,0.9642,3045.1,3045.0,0.517504]
[1763599496130,0.002,3045.1,3045.0,4.51016266]
[1763599496330,0.9642,3045.1,3045.0,4.51016266]
[1763599496864,0.4704,3045.1,3045.0,10.34315921]
[1763599497862,0.002,3045.1,3045.0,10.36365921]
[1763599498065,0.002,3045.1,3045.0,10.34315921]
[1763599498629,0.4704,3045.1,3045.0,10.34315921]
[1763599499265,0.9642,3045.1,3044.8,3.28428796]
[1763599499562,0.4958,3045.1,3044.8,3.39628796]
[1763599499754,0.6581,3044.9,3044.8,3.28428796]
[1763599499932,0.6581,3044.9,3044.7,9.22933763]
[1763599500131,0.9622,3044.8,3044.7,3.39634108]
[1763599500450,0.9622,3044.8,3044.1,5.83299655]
[1763599500654,0.4938,3044.7,3044.4,0.112]
[1763599500965,0.6835,3044.9,3044.5,5.83299655]
[1763599501167,0.1897,3044.9,3044.7,5.83299655]
[1763599501667,0.9622,3044.8,3044.7,6.23850055]
[1763599502136,0.1897,3044.9,3044.7,6.23850055]
[1763599502658,0.002,3045.1,3044.8,3.41678796]
[1763599502864,0.002,3045.1,3044.8,9.24978242]
[1763599503186,0.4684,3044.9,3044.8,3.39628796]
[1763599503365,0.4684,3044.9,3044.8,3.80179196]
[1763599503552,0.4958,3045.1,3044.8,7.08607992]
[1763599504649,0.002,3045.1,3044.8,7.99799469]
[1763599504849,0.002,3045.1,3045.0,0.0205]
[1763599505451,0.002,3045.1,3045.0,1.38633736]
[1763599506350,0.002,3045.1,3045.0,1.33299664]
[1763599506879,0.002,3045.1,3045.0,4.61706888]
[1763599507087,0.002,3045.1,3045.0,5.12975332]
[1763599509148,0.9654,3045.1,3045.0,4.70374932]
[1763599509454,0.9654,3045.1,3045.0,4.19106488]
[1763599509905,0.9654,3045.1,3043.4,4.25118611]
[1763599510053,0.9634,3045.0,3044.0,3.28515111]
[1763599510372,0.4712,3045.0,3044.4,5.83299446]
[1763599510572,0.1878,3044.9,3044.5,0.112]
[1763599510857,0.002,3045.1,3044.6,6.56900742]
[1763599511086,0.4732,3045.1,3044.6,6.56900742]
[1763599512450,0.4922,3044.7,3044.6,3.69000771]
[1763599512651,0.4922,3044.7,3044.6,3.80200771]
[1763599512888,0.9634,3044.7,3044.6,3.80200771]
[1763599514308,0.002,3045.1,3044.6,7.87400336]
[1763599514590,0.002,3045.1,3045.0,0.0205]
[1763599514759,0.002,3045.1,3045.0,4.72906888]
[1763599515964,0.4942,3045.1,3045.0,4.59656888]
[1763599516170,0.9654,3045.1,3045.0,4.70856888]
[1763599516489,0.4942,3045.1,3045.0,4.70856888]
[1763599516888,0.002,3045.1,3045.0,5.36617615]
[1763599517098,0.002,3045.1,3045.0,5.38667615]
[1763599519585,0.002,3045.1,3045.0,5.41951687]
[1763599520093,0.002,3045.1,3045.0,13.37366267]
[1763599520292,0.4942,3045.1,3045.0,5.25417615]
[1763599520498,0.4942,3045.1,3045.0,4.70856888]
[1763599520863,0.9654,3045.1,3045.0,4.70856888]
[1763599521069,0.4942,3045.1,3045.0,4.70856888]
[1763599522192,0.9654,3045.1,3045.0,4.70856888]
[1763599523283,0.9654,3045.1,3044.6,3.28449854]
[1763599523485,0.9634,3045.0,3044.0,6.57030222]
[1763599523676,0.4712,3045.0,3044.1,0.112]
[1763599523877,0.659,3044.9,3044.2,0.405504]
[1763599524505,0.4732,3045.1,3044.3,0.03284827]
[1763599524800,0.4732,3045.1,3044.2,0.405504]
[1763599524993,0.4732,3045.1,3044.2,1.17297299]
[1763599525395,0.4732,3045.1,3044.4,0.405504]
[1763599525567,0.4922,3044.5,3044.4,0.405504]
[1763599525786,0.4922,3044.5,3044.4,0.517504]
[1763599526526,0.4922,3044.5,3044.4,1.42449664]
[1763599526828,0.1897,3044.8,3044.4,2.08162686]
[1763599527043,0.002,3045.1,3044.4,2.08162686]
[1763599527317,0.002,3045.1,3044.6,0.405504]
[1763599527680,0.4889,3045.1,3044.6,0.405504]
[1763599528107,0.4889,3045.1,3044.6,1.31249664]
[1763599528284,0.4889,3045.1,3044.8,0.405504]
[1763599528614,0.002,3045.1,3044.9,0.112]
[1763599528808,0.002,3045.1,3044.9,0.06553]
[1763599529005,0.002,3045.1,3045.0,0.426004]
[1763599529210,0.002,3045.1,3045.0,0.405504]
[1763599529397,0.002,3045.1,3045.0,3.68957624]
[1763599529585,0.002,3045.1,3045.0,5.30049725]
[1763599531517,0.002,3045.1,3045.0,5.32099725]
[1763599532282,0.002,3045.1,3045.0,5.35383797]
[1763599532489,0.002,3045.1,3045.0,13.40798377]
[1763599532683,0.002,3045.1,3045.0,13.37514305]
[1763599535631,0.002,3045.1,3045.0,13.25464305]
[1763599537640,0.002,3045.1,3045.0,13.37514305]
[1763599537936,0.002,3045.1,3045.0,5.41249725]
[1763599538712,0.002,3045.1,3045.0,3.71007624]
[1763599538913,0.002,3045.1,3045.0,11.87622204]
[1763599539092,0.002,3045.1,3045.0,12.78321468]
[1763599539402,0.002,3045.1,3045.0,4.61706888]
[1763599539610,0.002,3045.1,3045.0,4.72906888]
[1763599541031,0.002,3045.1,3045.0,4.61706888]
[1763599541331,0.002,3045.1,3045.0,4.72906888]
[1763599541516,0.002,3045.1,3045.0,5.53039352]
[1763599542530,0.002,3045.1,3045.0,5.58373424]
[1763599542730,0.002,3045.1,3045.0,13.51738004]
[1763599542939,0.002,3045.1,3045.0,13.58453932]
[1763599543608,0.002,3045.1,3045.0,13.56403932]
[1763599545697,0.002,3045.1,3045.0,13.58453932]
[1763599546324,0.002,3045.1,3045.0,13.56403932]
[1763599546631,0.002,3045.1,3045.0,13.46403932]
[1763599546806,0.002,3045.1,3045.0,13.56403932]
[1763599547831,0.002,3045.1,3045.0,13.46403932]
[1763599549047,0.002,3045.1,3045.0,13.56403932]
[1763599550939,0.002,3045.1,3045.0,17.33353932]
[1763599551338,0.002,3045.1,3045.0,17.35403932]
[1763599551838,0.9937,3045.1,3045.0,7.98106488]
[1763599552038,0.9937,3045.1,3045.0,8.49856888]
[1763599552262,0.9937,3045.1,3045.0,7.18607224]
[1763599552648,0.9937,3045.1,3045.0,8.49856888]
[1763599554270,0.4998,3045.1,3045.0,8.49856888]
[1763599555069,0.002,3045.1,3045.0,8.49856888]
[1763599556846,0.002,3045.1,3045.0,4.70856888]
[1763599557263,0.9937,3045.1,3045.0,4.70856888]
[1763599560371,0.9937,3045.1,3045.0,4.59656888]
[1763599560571,0.9937,3045.1,3045.0,4.30306488]
[1763599561366,0.9937,3045.1,3045.0,1.01899264]
[1763599561765,0.9937,3045.1,3045.0,4.30306488]
[1763599561946,0.9937,3045.1,3045.0,0.112]
[1763599562153,0.9937,3045.1,3045.0,3.39607224]
[1763599563289,0.9937,3045.1,3045.0,3.80157624]
[1763599563290,0.4998,3045.1,3045.0,3.80157624]
[1763599563788,0.9937,3045.1,3045.0,3.80157624]
[1763599564692,0.9937,3045.1,3045.0,3.39607224]
[1763599564990,0.9937,3045.1,3045.0,3.28407224]
[1763599565353,0.9937,3045.1,3044.9,0.001]
[1763599565552,0.9917,3045.0,3044.5,0.001]
[1763599565753,0.6977,3044.6,3044.2,3.28592302]
[1763599566075,0.4978,3044.3,3044.2,4.19291566]
[1763599566266,0.4978,3044.3,3044.2,4.30491566]
[1763599566469,0.9917,3044.3,3044.2,3.39792302]
[1763599566850,0.4978,3044.3,3044.2,3.39792302]
[1763599567051,0.002,3045.1,3044.3,0.405504]
[1763599567052,0.1999,3044.7,3044.3,0.405504]
[1763599567277,0.1999,3045.0,3044.5,0.405504]
[1763599567471,0.4939,3044.9,3044.6,0.112]
[1763599567889,0.4978,3044.7,3044.6,0.517504]
[1763599568286,0.9515,3044.7,3044.6,0.405504]
[1763599568516,0.9515,3044.7,3044.6,0.112]
[1763599568897,0.9515,3044.7,3044.3,3.3967808]
[1763599569217,0.4574,3044.4,3044.3,3.3967808]
[1763599569396,0.4574,3044.4,3044.2,3.28592542]